fUST/lending_fUST_20240609
["ID","MTS","AMOUNT","RATE_DAILY","PERIOD"]
[328873369,1717938646468,-590.56,0.0001726,2]
[328873370,1717938646477,-440.06183205,0.0001726,2]
[328873371,1717938646487,-265.3,0.0001726,2]
[328873372,1717938646497,-500.0,0.0001726,2]
[328873373,1717938646506,-500.0,0.0001726,2]
[328873374,1717938646516,-500.0,0.0001726,2]
[328873375,1717938646526,-500.0,0.0001726,2]
[328873376,1717938646536,-2886.27,0.0001726,2]
[328873377,1717938646546,-500.0,0.0001726,2]
[328873378,1717938646555,-500.0,0.0001726,2]
[328873379,1717938646566,-500.0,0.0001726,2]
[328873380,1717938646576,-500.0,0.0001726,2]
[328873381,1717938646586,-15066.86855055,0.00017534,7]
[328873382,1717938646597,-262.56,0.00017534,2]
[328873383,1717938646607,-500.0,0.00017534,2]
[328873384,1717938646617,-500.0,0.00017534,2]
[328873385,1717938646627,-500.0,0.00017534,2]
[328873386,1717938646637,-2886.27,0.00017534,2]
[328873387,1717938646647,-500.0,0.00017534,2]
[328873388,1717938646657,-1111.0,0.00017534,3]
[328873389,1717938646667,-1111.0,0.00017534,3]
[328873390,1717938646676,-1111.0,0.00017534,3]
[328873391,1717938646686,-1111.0,0.00017534,3]
[328873392,1717938646696,-1111.0,0.00017534,3]
[328873393,1717938646706,-425.5325198,0.00017534,2]
[328873394,1717938646716,-500.0,0.00017534,2]
[328873395,1717938646726,-181.74700358,0.00017534,2]
[328873396,1717938646736,-500.0,0.00017697,2]
[328873397,1717938646746,-500.0,0.00017697,4]
[328873398,1717938646756,-500.0,0.00017697,2]
[328873399,1717938646767,-500.0,0.00017697,2]
[328873400,1717938646777,-500.0,0.00017697,2]
[328873401,1717938646787,-500.0,0.00017697,2]
[328873402,1717938646797,-500.0,0.00017697,2]
[328873404,1717938646808,-500.0,0.00017697,2]
[328873406,1717938646819,-500.0,0.00017697,2]
[328873407,1717938646830,-500.0,0.00017697,2]
[328873409,1717938646840,-500.0,0.00017697,2]
[328873410,1717938646850,-500.0,0.00017697,2]
[328873411,1717938646860,-372.48344079,0.00017697,2]
[328873412,1717938646871,-500.0,0.00017697,2]
[328873413,1717938646882,-617.18,0.00017697,2]
[328873414,1717938646892,-500.0,0.00017697,2]
[328873415,1717938646902,-150.0,0.00017769,2]
[328873416,1717938646912,-500.0,0.00017808,2]
[328873417,1717938646924,-500.0,0.00017808,2]
[328873418,1717938646934,-500.0,0.00017808,2]
[328873419,1717938646944,-2886.27,0.00017808,2]
[328873420,1717938646954,-500.0,0.00017808,2]
[328873421,1717938646964,-1111.0,0.00017808,3]
[328873423,1717938646974,-500.0,0.00017808,2]
[328873424,1717938646984,-1306.03494176,0.00017898,2]
[328873425,1717938646993,-500.0,0.00017971,4]
[328873426,1717938647003,-500.0,0.00017971,2]
[328873427,1717938647013,-4910.5715991,0.00017993,2]
[328873428,1717938647023,-7267.44042319,0.00018,2]
[328873429,1717938647033,-1058.74102237,0.00018,2]
[328873430,1717938647043,-632.70327939,0.00018,2]
[328873431,1717938647053,-1355.02163008,0.00018,2]
[328873432,1717938647063,-4789.0,0.00018,2]
[328873433,1717938647074,-500.0,0.00018082,2]
[328873434,1717938647085,-271.66,0.00018082,2]
[328873436,1717938647095,-500.0,0.00018082,2]
[328873438,1717938647106,-2886.27,0.00018082,2]
[328873439,1717938647115,-500.0,0.00018082,2]
[328873440,1717938647125,-900.3678005,0.00018082,3]
[328873441,1717938647135,-500.0,0.00018082,2]
[328873442,1717938647144,-494.0,0.00018151,2]
[328873443,1717938647154,-384.27264776,0.00018245,4]
[328873444,1717938647164,-500.0,0.00018245,2]
[328873445,1717938647174,-350.2,0.00018356,2]
[328873446,1717938647183,-500.0,0.00018356,2]
[328873447,1717938647193,-2886.27,0.00018356,2]
[328873448,1717938647204,-500.0,0.00018356,2]
[328873449,1717938647214,-500.0,0.00018356,2]
[328873450,1717938647226,-600.0,0.00018411,2]
[328873451,1717938647237,-628.4774714,0.00018504,2]
[328873452,1717938647247,-181.4,0.00018519,2]
[328873453,1717938647259,-529.40916867,0.0001863,2]
[328873454,1717938647269,-2886.27,0.0001863,2]
[328873455,1717938647279,-326.02576146,0.0001863,2]
[328873456,1717938647289,-500.0,0.0001863,2]
[328873464,1717938647418,-3041.73142947,0.000189,2]
[328873465,1717938647429,-2886.27,0.00018904,2]
[328873466,1717938647440,-310.50777199,0.00018904,2]
[328873467,1717938647449,-2000.0,0.00018978,2]
[328873468,1717938647459,-1000.0,0.00019,2]
[328873469,1717938647469,-163.07446836,0.00019,2]
[328873470,1717938647478,-4238.41830585,0.00019052,2]
[328873471,1717938647488,-190.4326803,0.00019077,2]
[328873472,1717938647498,-151.0,0.00019078,2]
[328873473,1717938647508,-151.0,0.00019078,2]
[328873474,1717938647518,-627.090445,0.00019078,2]
[328873475,1717938647529,-627.090445,0.00019078,2]
[328873476,1717938647539,-151.0,0.00019078,2]
[328873477,1717938647549,-151.0,0.00019078,2]
[328873478,1717938647559,-151.0,0.00019078,2]
[328873479,1717938647569,-4683.99114004,0.00019078,2]
[328873480,1717938647672,-83498.83346173,0.00019078,2]
[328873481,1717938647682,-239.82509066,0.00019098,2]
[328873482,1717938647692,-1100.27196223,0.00019174,2]
[328873483,1717938647702,-9585.69744994,0.00019174,2]
[328873484,1717938647712,-2409.63345823,0.00019174,2]
[328873485,1717938647722,-1489.20952701,0.00019174,2]
[328873486,1717938647733,-8925.65557114,0.00019176,2]
[328873487,1717938647745,-824.74,0.00019176,2]
[328873488,1717938647767,-624.34,0.00016438,2]
[328873489,1717938647777,-246.79088573,0.00019176,2]
[328873490,1717938647790,-7113.20785081,0.00019176,2]
[328873491,1717938647802,-3813.90000001,0.00019176,2]
[328873492,1717938647814,-1216.8256923,0.00019176,2]
[328873493,1717938647824,-216.23913996,0.00019176,2]
[328873494,1717938647833,-42.71662088,0.00019176,2]
[328873495,1717938647847,-1173.85529214,0.00019176,2]
[328873496,1717938647857,-151.0,0.00019176,2]
[328873497,1717938647868,-1000.0,0.00019176,2]
[328873498,1717938647878,-33.23594679,0.00019176,2]
[328873499,1717938650622,-660.45411521,0.00019176,2]
[328873500,1717938650632,-2889.52255342,0.00019178,7]
[328873501,1717938650642,-2644.87492438,0.00019178,2]
[328873502,1717938650652,-2039.82308628,0.00019178,2]
[328873503,1717938650725,-4864.09081673,0.00019178,2]
[328873504,1717938650735,-6903.91390301,0.00019178,2]
[328873505,1717938650746,-6903.91390301,0.00019178,2]
[328873506,1717938650757,-6903.91390301,0.00019178,2]
[328873507,1717938650767,-6903.91390301,0.00019178,2]
[328873508,1717938650778,-6903.91390301,0.00019178,2]
[328873509,1717938650789,-6903.91390301,0.00019178,2]
[328873510,1717938650800,-6903.91390301,0.00019178,2]
[328873511,1717938650810,-6903.91390301,0.00019178,2]
[328873512,1717938650821,-6903.91390301,0.00019178,2]
[328873513,1717938650832,-6903.91390301,0.00019178,2]
[328873514,1717938650842,-6903.91390301,0.00019178,2]
[328873515,1717938650852,-6903.91390301,0.00019178,2]
[328873516,1717938650863,-6903.91390301,0.00019178,2]
[328873517,1717938650873,-6903.91390301,0.00019178,2]
[328873518,1717938650883,-6903.91390301,0.00019178,2]
[328873519,1717938650894,-6903.91390301,0.00019178,2]
[328873520,1717938650904,-6903.91390301,0.00019178,2]
[328873521,1717938650914,-6903.91390301,0.00019178,2]
[328873522,1717938650924,-6903.91390301,0.00019178,2]
[328873523,1717938650934,-6903.91390301,0.00019178,2]
[328873524,1717938650943,-6903.91390301,0.00019178,2]
[328873525,1717938650954,-6903.91390301,0.00019178,2]
[328873526,1717938650964,-6903.91390301,0.00019178,2]
[328873527,1717938650973,-6903.91390301,0.00019178,2]
[328873528,1717938650983,-6903.91390301,0.00019178,2]
[328873529,1717938650993,-6873.70927969,0.00019178,2]
[328873530,1717938651003,-6873.70927969,0.00019178,2]
[328873531,1717938651015,-6873.70927969,0.00019178,2]
[328873532,1717938651026,-6873.70927969,0.00019178,2]
[328873533,1717938651036,-6873.70927969,0.00019178,2]
[328873534,1717938651046,-6873.70927969,0.00019178,2]
[328873535,1717938651056,-6873.70927969,0.00019178,2]
[328873536,1717938651066,-6873.70927969,0.00019178,2]
[328873537,1717938651077,-6873.70927969,0.00019178,2]
[328873538,1717938651087,-6873.70927969,0.00019178,2]
[328873539,1717938651097,-270.47634367,0.00019178,2]
[328873540,1717938651107,-256.7639797,0.00019178,2]
[328873541,1717938651117,-3944.34177929,0.00019178,2]
[328873542,1717938651126,-3944.34177929,0.00019178,2]
[328873543,1717938651136,-3944.34177929,0.00019178,2]
[328873544,1717938651147,-3944.34177929,0.00019178,2]
[328873545,1717938651157,-3944.34177929,0.00019178,2]
[328873546,1717938651168,-3944.34177929,0.00019178,2]
[328873547,1717938651178,-3944.34177929,0.00019178,2]
[328873548,1717938651188,-3944.34177929,0.00019178,2]
[328873549,1717938651198,-3944.34177929,0.00019178,2]
[328873550,1717938651208,-3944.34177929,0.00019178,2]
[328873551,1717938651219,-3944.34177929,0.00019178,2]
[328873552,1717938651230,-3944.34177929,0.00019178,2]
[328873553,1717938651241,-3944.34177929,0.00019178,2]
[328873554,1717938651251,-500.00000002,0.00019178,2]
[328873555,1717938651263,-286.64405799,0.00019178,2]
[328873556,1717938651273,-275.97924502,0.00019178,2]
[328873557,1717938651284,-456.24093667,0.00019178,2]
[328873558,1717938651295,-500.0,0.00019178,2]
[328873559,1717938651307,-380.61803627,0.00019178,2]
[328873560,1717938651318,-195.59961382,0.00019178,2]
[328873561,1717938651329,-500.0,0.00019178,2]
[328873562,1717938651339,-500.0,0.00019178,2]
[328873563,1717938651350,-497.20432968,0.00019178,2]
[328873564,1717938651360,-500.0,0.00019178,2]
[328873565,1717938651369,-500.0,0.00019178,2]
[328873566,1717938651379,-400.0,0.00019178,2]
[328873567,1717938651390,-541.86803217,0.00019178,2]
[328873568,1717938651400,-155.58398392,0.00019178,2]
[328873569,1717938651411,-500.0,0.00019178,2]
[328873570,1717938651422,-500.0,0.00019178,2]
[328873571,1717938651432,-500.0,0.00019178,2]
[328873572,1717938651442,-500.0,0.00019178,2]
[328873573,1717938651452,-500.0,0.00019178,2]
[328873574,1717938651463,-500.0,0.00019178,2]
[328873575,1717938651473,-255.0,0.00019178,2]
[328873576,1717938651483,-500.0,0.00019178,2]
[328873577,1717938651492,-500.0,0.00019178,2]
[328873578,1717938651504,-500.0,0.00019178,2]
[328873579,1717938651518,-386.04479141,0.00019178,2]
[328873580,1717938651528,-151.0,0.00019178,2]
[328873581,1717938651539,-156.565641,0.00019178,2]
[328873582,1717938651552,-151.635083,0.00019178,2]
[328873583,1717938651564,-151.0,0.00019178,2]
[328873584,1717938651579,-151.0,0.00019178,2]
[328873585,1717938651591,-220.789789,0.00019178,2]
[328873586,1717938651603,-2886.27,0.00019178,2]
[328873587,1717938651615,-627.090445,0.00019178,2]
[328873588,1717938651625,-627.090445,0.00019178,2]
[328873589,1717938651635,-627.090445,0.00019178,2]
[328873590,1717938651645,-627.090445,0.00019178,2]
[328873591,1717938651658,-627.090445,0.00019178,2]
[328873592,1717938651668,-627.090445,0.00019178,2]
[328873593,1717938651679,-627.090445,0.00019178,2]
[328873594,1717938651689,-627.090445,0.00019178,2]
[328873595,1717938651702,-627.090445,0.00019178,2]
[328873596,1717938651713,-627.090445,0.00019178,2]
[328873597,1717938651725,-151.619067,0.00019178,2]
[328873598,1717938651737,-151.0,0.00019178,2]
[328873599,1717938651749,-151.0,0.00019178,2]
[328873600,1717938651760,-151.0,0.00019178,2]
[328873601,1717938651772,-151.0,0.00019178,2]
[328873602,1717938651786,-151.0,0.00019178,2]
[328873603,1717938651799,-151.0,0.00019178,3]
[328873604,1717938651812,-270.433235,0.00019178,2]
[328873605,1717938651823,-169.6446234,0.00019178,2]
[328873606,1717938651836,-167.678056,0.00019178,2]
[328873607,1717938651847,-620.42387357,0.00019429,2]
[328873608,1717938651859,-2000.0,0.00019434,2]
[328873609,1717938651871,-627.090445,0.00019435,2]
[328873610,1717938651882,-627.090445,0.00019435,2]
[328873611,1717938651893,-247.606728,0.00019435,2]
[328873612,1717938651904,-2000.0,0.00019443,2]
[328873613,1717938651916,-2000.0,0.00019452,2]
[328873614,1717938651929,-2886.27,0.00019452,2]
[328873615,1717938651941,-49192.0,0.000195,2]
[328873616,1717938651952,-1000.0,0.000196,2]
[328873617,1717938651964,-2886.27,0.00019726,2]
[328873618,1717938651975,-627.090445,0.00019726,2]
[328873619,1717938651986,-627.090445,0.00019726,2]
[328873620,1717938651997,-50000.0,0.000198,2]
[328873621,1717938652007,-598.88462913,0.000199,10]
[328873622,1717938652019,-12508.01644282,0.0002,2]
[328873623,1717938652031,-435.0,0.0002,2]
[328873624,1717938652043,-1455.70606236,0.0002,3]
[328873625,1717938652054,-31885.07771003,0.0002,2]
[328873626,1717938652066,-154.98450155,0.0002,2]
[328873627,1717938652079,-186.05350115,0.0002,2]
[328873628,1717938652090,-425.315438,0.0002,2]
[328873629,1717938652102,-492.0,0.0002,2]
[328873630,1717938652114,-1000.0,0.0002,7]
[328873631,1717938652125,-50000.0,0.0002,2]
[328873632,1717938652136,-160.0,0.0002,2]
[328873633,1717938652149,-938.4898965,0.0002,2]
[328873634,1717938652161,-1809.78966283,0.0002,2]
[328873635,1717938652173,-160.0,0.0002,2]
[328873636,1717938652185,-154.9690062,0.0002,2]
[328873637,1717938652198,-2000.0,0.0002,2]
[328873638,1717938652211,-2000.0,0.0002,2]
[328873639,1717938652224,-1000.0,0.0002,4]
[328873640,1717938652237,-1000.0,0.0002,5]
[328873641,1717938652247,-2647.49626302,0.0002,5]
[328873642,1717938652257,-155.58612637,0.0002,2]
[328873643,1717938652268,-197.72702749,0.0002,2]
[328873644,1717938652278,-883.0,0.0002,2]
[328873645,1717938652289,-528.95396737,0.0002,4]
[328873646,1717938652301,-32823.29020002,0.0002,2]
[328873647,1717938652312,-254.0,0.0002,2]
[328873648,1717938652324,-254.0,0.0002,2]
[328873649,1717938652336,-508.0,0.0002,2]
[328873650,1717938652348,-508.0,0.0002,2]
[328873651,1717938652359,-508.0,0.0002,2]
[328873652,1717938652369,-542.0,0.0002,2]
[328873653,1717938652380,-542.0,0.0002,2]
[328873654,1717938652392,-2000.0,0.0002,2]
[328873655,1717938652403,-542.0,0.0002,2]
[328873656,1717938652414,-1687.0,0.0002,2]
[328873657,1717938652426,-3653.37996429,0.0002,2]
[328873658,1717938652437,-1164.84483091,0.0002,2]
[328873659,1717938652449,-1024.67022641,0.0002,2]
[328873660,1717938652460,-50735.44360927,0.0002,2]
[328873661,1717938652471,-539.86203041,0.0002,2]
[328873662,1717938652482,-932.35426985,0.0002,2]
[328873663,1717938652493,-2886.27,0.0002,2]
[328873664,1717938652503,-627.090445,0.0002,2]
[328873665,1717938652515,-627.090445,0.0002,2]
[328873666,1717938652526,-627.090445,0.0002,2]
[328873667,1717938652537,-627.090442,0.0002,2]
[328873668,1717938652548,-1017.64638371,0.0002,2]
[328873669,1717938652560,-1000.0,0.000201,2]
[328873670,1717938652570,-2886.27,0.00020273,2]
[328873671,1717938652581,-151.0,0.00020385,2]
[328873672,1717938652591,-593.0,0.000204,2]
[328873673,1717938652602,-620.02119368,0.00020401,2]
[328873674,1717938652616,-26577.15764316,0.00020439,2]
[328873675,1717938652628,-1000.0,0.000205,2]
[328873676,1717938652640,-2886.27,0.00020547,2]
[328873677,1717938652653,-1040.606263,0.00020548,2]
[328873678,1717938652665,-124426.14973291,0.000206,2]
[328873679,1717938652677,-432.16814441,0.000206,2]
[328873680,1717938652688,-25874.21170753,0.000206,2]
[328873681,1717938652700,-154.98450155,0.000206,2]
[328873682,1717938652712,-904.18619073,0.000206,2]
[328873683,1717938652724,-155.42727592,0.000206,2]
[328873684,1717938652736,-150.716901,0.000206,2]
[328873685,1717938652747,-1000.0,0.000206,2]
[328873686,1717938652758,-2000.0,0.000208,6]
[328873687,1717938652769,-254.0,0.000208,2]
[328873688,1717938652780,-2886.27,0.00020821,2]
[328873689,1717938652792,-393.83302631,0.00021,2]
[328873690,1717938652803,-3173.78831218,0.00021,7]
[328873691,1717938652813,-11481.15126287,0.00021,2]
[328873692,1717938652824,-1000.0,0.00021,8]
[328873693,1717938652835,-20027.83286,0.00021,2]
[328873694,1717938652846,-8336.0,0.00021,2]
[328873695,1717938652857,-4271.9243,0.00021,5]
[328873696,1717938652868,-2576.0,0.00021,2]
[328873697,1717938652879,-1000.00000099,0.00021,2]
[328873698,1717938652891,-11583.73750003,0.00021,2]
[328873699,1717938652902,-10073.10978406,0.00021,2]
[328873700,1717938652914,-198.48928422,0.00021,2]
[328873701,1717938652925,-2886.27,0.00021095,2]
[328873702,1717938652936,-150.96980604,0.00021164,7]
[328873703,1717938652948,-20000.0,0.00021346,2]
[328873704,1717938652959,-2886.27,0.00021369,2]
[328873705,1717938652971,-20608.75120704,0.00021484,2]
[328873706,1717938652982,-1003.9703978,0.000215,2]
[328873707,1717938652993,-3000.0,0.000215,2]
[328873708,1717938653005,-3000.0,0.0002151,2]
[328873709,1717938653016,-3000.0,0.0002152,2]
[328873710,1717938653027,-3000.0,0.0002153,2]
[328873711,1717938653038,-3000.0,0.0002154,2]
[328873712,1717938653049,-3000.0,0.0002155,2]
[328873713,1717938653060,-3000.0,0.0002156,2]
[328873714,1717938653072,-3000.0,0.0002157,2]
[328873715,1717938653085,-11710.37557905,0.0002158,2]
[328873716,1717938653096,-3000.0,0.0002158,2]
[328873717,1717938653108,-3000.0,0.0002159,2]
[328873718,1717938653119,-150.96980604,0.00021596,4]
[328873719,1717938653131,-3000.0,0.000216,2]
[328873720,1717938653143,-3000.0,0.0002161,2]
[328873721,1717938653154,-3000.0,0.0002162,2]
[328873722,1717938653166,-3000.0,0.0002163,2]
[328873723,1717938653177,-3000.0,0.0002164,2]
[328873724,1717938653188,-2886.27,0.00021643,2]
[328873725,1717938653355,-3000.0,0.0002165,2]
[328873726,1717938653368,-3000.0,0.0002166,2]
[328873727,1717938653378,-3000.0,0.0002167,2]
[328873728,1717938653389,-3000.0,0.0002168,2]
[328873729,1717938653399,-3000.0,0.0002169,2]
[328873730,1717938653409,-3000.0,0.000217,2]
[328873731,1717938653420,-3000.0,0.0002171,2]
[328873732,1717938653430,-3000.0,0.0002172,2]
[328873733,1717938653441,-3000.0,0.0002173,2]
[328873734,1717938653451,-3000.0,0.0002174,2]
[328873735,1717938653461,-3000.0,0.0002175,2]
[328873736,1717938653471,-3000.0,0.0002176,2]
[328873737,1717938653481,-3000.0,0.0002177,2]
[328873738,1717938653491,-3000.0,0.0002178,2]
[328873739,1717938653501,-3000.0,0.0002179,2]
[328873740,1717938653510,-2000.0,0.000218,8]
[328873741,1717938653521,-2000.0,0.000218,9]
[328873742,1717938653531,-3000.0,0.000218,2]
[328873743,1717938653541,-3000.0,0.0002181,2]
[328873744,1717938653551,-3000.0,0.0002182,2]
[328873745,1717938653562,-3000.0,0.0002183,2]
[328873746,1717938653573,-3000.0,0.0002184,2]
[328873747,1717938653582,-3000.0,0.0002185,2]
[328873748,1717938653592,-3000.0,0.0002186,2]
[328873749,1717938653603,-3000.0,0.0002187,2]
[328873750,1717938653613,-3000.0,0.0002188,2]
[328873751,1717938653623,-3000.0,0.0002189,2]
[328873752,1717938653633,-3000.0,0.000219,2]
[328873753,1717938653643,-3000.0,0.0002191,2]
[328873754,1717938653653,-258.2929442,0.00021917,2]
[328873755,1717938653664,-710.19767022,0.00021917,4]
[328873756,1717938653675,-297.87,0.00021917,2]
[328873757,1717938653685,-297.87,0.00021917,2]
[328873758,1717938653695,-297.87,0.00021917,2]
[328873759,1717938653706,-297.87,0.00021917,2]
[328873760,1717938653716,-297.87,0.00021917,2]
[328873761,1717938653726,-297.87,0.00021917,2]
[328873762,1717938653737,-297.87,0.00021917,2]
[328873763,1717938653748,-297.87,0.00021917,2]
[328873764,1717938653759,-297.87,0.00021917,2]
[328873765,1717938653768,-297.87,0.00021917,2]
[328873766,1717938653778,-297.87,0.00021917,2]
[328873767,1717938653789,-297.87,0.00021917,2]
[328873768,1717938653799,-297.87,0.00021917,2]
[328873769,1717938653810,-297.87,0.00021917,2]
[328873770,1717938653821,-297.87,0.00021917,2]
[328873771,1717938653831,-297.87,0.00021917,2]
[328873772,1717938653841,-297.87,0.00021917,2]
[328873773,1717938653850,-297.87,0.00021917,2]
[328873774,1717938653860,-297.87,0.00021917,2]
[328873775,1717938653871,-297.87,0.00021917,2]
[328873776,1717938653882,-297.87,0.00021917,2]
[328873777,1717938653891,-2886.27,0.00021917,2]
[328873778,1717938653902,-151.0,0.00021918,2]
[328873779,1717938653912,-151.0,0.00021918,2]
[328873780,1717938653922,-151.0,0.00021918,2]
[328873781,1717938653932,-151.0,0.00021918,2]
[328873782,1717938653942,-151.0,0.00021918,2]
[328873783,1717938653952,-151.0,0.00021918,2]
[328873784,1717938653962,-151.0,0.00021918,2]
[328873785,1717938653972,-151.0,0.00021918,2]
[328873786,1717938653982,-169.851907,0.00021918,2]
[328873787,1717938653992,-151.0,0.00021918,2]
[328873788,1717938654002,-151.0,0.00021918,2]
[328873789,1717938654012,-151.0,0.00021918,2]
[328873790,1717938654022,-151.0,0.00021918,2]
[328873791,1717938654032,-151.0,0.00021918,2]
[328873792,1717938654043,-151.0,0.00021918,2]
[328873793,1717938654053,-151.0,0.00021918,2]
[328873794,1717938654063,-151.0,0.00021918,2]
[328873795,1717938654075,-151.0,0.00021918,2]
[328873796,1717938654085,-151.0,0.00021918,2]
[328873797,1717938654095,-151.0,0.00021918,2]
[328873798,1717938654104,-151.0,0.00021918,2]
[328873799,1717938654114,-151.0,0.00021918,2]
[328873800,1717938654123,-151.0,0.00021918,2]
[328873801,1717938654133,-151.0,0.00021918,2]
[328873802,1717938654142,-289.079968,0.00021918,2]
[328873803,1717938654152,-53296.9610272,0.00021918,2]
[328873804,1717938654162,-428.508994,0.00021918,2]
[328873805,1717938654172,-428.508994,0.00021918,2]
[328873806,1717938654182,-428.508994,0.00021918,2]
[328873807,1717938654192,-428.508994,0.00021918,2]
[328873808,1717938654203,-428.508994,0.00021918,2]
[328873809,1717938654216,-428.508994,0.00021918,2]
[328873810,1717938654229,-428.508994,0.00021918,2]
[328873811,1717938654238,-428.508994,0.00021918,2]
[328873812,1717938654248,-428.508994,0.00021918,2]
[328873813,1717938654257,-428.508994,0.00021918,2]
[328873814,1717938654267,-428.508994,0.00021918,2]
[328873815,1717938654277,-428.508994,0.00021918,2]
[328873816,1717938654286,-428.508994,0.00021918,2]
[328873817,1717938654296,-428.508994,0.00021918,2]
[328873818,1717938654306,-428.508994,0.00021918,2]
[328873819,1717938654315,-428.508994,0.00021918,2]
[328873820,1717938654326,-428.508994,0.00021918,2]
[328873821,1717938654336,-428.508994,0.00021918,2]
[328873822,1717938654347,-428.508994,0.00021918,2]
[328873823,1717938654357,-428.508992,0.00021918,2]
[328873824,1717938654366,-166.666666,0.00021918,2]
[328873825,1717938654376,-3000.0,0.0002192,2]
[328873826,1717938654386,-3000.0,0.0002193,2]
[328873827,1717938654395,-3000.0,0.0002194,2]
[328873828,1717938654404,-3000.0,0.0002195,2]
[328873829,1717938654414,-3000.0,0.0002196,2]
[328873830,1717938654423,-3000.0,0.0002197,2]
[328873831,1717938654434,-3000.0,0.0002198,2]
[328873832,1717938654444,-3000.0,0.0002199,2]
[328873833,1717938654454,-45358.79,0.00022,2]
[328873834,1717938654463,-962.66926315,0.00022,2]
[328873835,1717938654473,-125390.5084048,0.00022,2]
[328873836,1717938654483,-1000.0,0.00022,10]
[328873837,1717938654493,-12837.84972549,0.00022,2]
[328873838,1717938654503,-276.37619854,0.00022,2]
[328873839,1717938654513,-154.95351395,0.00022,2]
[328873840,1717938654524,-6454.45297732,0.00022,2]
[328873841,1717938654534,-501.0,0.00022,2]
[328873842,1717938654544,-3000.0,0.00022,2]
[328873843,1717938654555,-3000.0,0.0002201,2]
[328873844,1717938654565,-3000.0,0.0002202,2]
[328873845,1717938654576,-3000.0,0.0002203,2]
[328873846,1717938654586,-150.96980604,0.00022037,2]
[328873847,1717938654598,-3000.0,0.0002204,2]
[328873848,1717938654608,-3000.0,0.0002205,2]
[328873849,1717938654619,-3000.0,0.0002206,2]
[328873850,1717938654629,-3000.0,0.0002207,2]
[328873851,1717938654639,-3000.0,0.0002208,2]
[328873852,1717938654649,-3000.0,0.0002209,2]
[328873853,1717938654659,-3000.0,0.000221,2]
[328873854,1717938654670,-3000.0,0.0002211,2]
[328873855,1717938654680,-5640.389057,0.0002212,2]
[328873856,1717938654692,-297.87,0.00022191,2]
[328873857,1717938654702,-362.17135262,0.00022191,7]
[328873858,1717938654713,-2886.27,0.00022191,2]
[328873859,1717938654723,-160.0,0.00022225,3]
[328873860,1717938654732,-1070.39039613,0.000223,2]
[328873861,1717938654742,-160.0,0.00022431,4]
[328873862,1717938654752,-166.666666,0.00022431,2]
[328873863,1717938654762,-275232.87689551,0.00022431,8]
[328873864,1717938654773,-60579.1,0.0002244,3]
[328873865,1717938654784,-297.87,0.00022465,2]
[328873866,1717938654794,-2886.27,0.00022465,2]
[328873867,1717938654804,-160.0,0.00022636,5]
[328873868,1717938654814,-2206.798403,0.000227,7]
[328873869,1717938654825,-298.00305812,0.00022739,2]
[328873870,1717938654836,-2886.39,0.00022739,2]
[328873871,1717938654846,-1353.35371129,0.00022747,8]
[328873872,1717938654857,-5000.0,0.00022799,7]
[328873873,1717938654867,-5023.7,0.000228,7]
[328873874,1717938654877,-160.0,0.00022842,6]
[328873875,1717938654888,-2333.26,0.000229,3]
[328873876,1717938654898,-2333.26,0.000229,3]
[328873877,1717938654908,-2333.26,0.000229,3]
[328873878,1717938654918,-2333.26,0.000229,3]
[328873879,1717938654929,-2333.26,0.000229,3]
[328873880,1717938654939,-2333.26,0.000229,3]
[328873881,1717938654949,-2333.26,0.000229,3]